fUSD/lending_fUSD_20241223
["ID","MTS","AMOUNT","RATE_DAILY","PERIOD"]
[346367434,1734915034651,-500.0,0.00019178,2]
[346367435,1734915034662,-500.0,0.00019178,2]
[346367436,1734915034672,-500.0,0.00019178,2]
[346367437,1734915034681,-500.0,0.00019178,2]
[346367438,1734915034691,-511.84,0.00019178,2]
[346367439,1734915034701,-500.0,0.00019178,2]
[346367440,1734915034711,-500.0,0.00019178,2]
[346367441,1734915034721,-690.54,0.00019178,2]
[346367442,1734915034731,-796.63,0.00019178,2]
[346367443,1734915034740,-500.0,0.00019178,2]
[346367444,1734915034750,-500.0,0.00019178,2]
[346367445,1734915034760,-500.0,0.00019178,2]
[346367446,1734915034770,-500.0,0.00019178,2]
[346367447,1734915034780,-272.41,0.00019178,2]
[346367448,1734915034790,-500.0,0.00019178,2]
[346367449,1734915034801,-500.0,0.00019178,2]
[346367450,1734915034811,-500.0,0.00019178,2]
[346367451,1734915034821,-500.0,0.00019178,2]
[346367452,1734915034830,-502.04,0.00019178,2]
[346367453,1734915034840,-500.0,0.00019178,2]
[346367454,1734915034849,-500.0,0.00019178,2]
[346367455,1734915034859,-500.0,0.00019178,2]
[346367456,1734915034868,-625.3,0.00019178,2]
[346367457,1734915034878,-652.55,0.00019178,2]
[346367458,1734915034887,-567.15,0.00019178,2]
[346367459,1734915034896,-500.0,0.00019178,2]
[346367460,1734915034906,-500.0,0.00019178,2]
[346367461,1734915034915,-500.0,0.00019178,2]
[346367462,1734915034925,-706.97,0.00019178,2]
[346367463,1734915034939,-500.0,0.00019178,2]
[346367464,1734915034948,-500.0,0.00019178,2]
[346367465,1734915034957,-500.0,0.00019178,2]
[346367466,1734915034967,-500.0,0.00019178,2]
[346367467,1734915034977,-500.0,0.00019178,2]
[346367468,1734915034986,-500.0,0.00019178,2]
[346367469,1734915034995,-500.0,0.00019178,2]
[346367470,1734915035005,-500.0,0.00019178,2]
[346367471,1734915035015,-500.0,0.00019178,2]
[346367472,1734915035026,-562.07,0.00019178,2]
[346367473,1734915035035,-500.0,0.00019178,2]
[346367474,1734915035047,-500.0,0.00019178,2]
[346367475,1734915035056,-500.0,0.00019178,2]
[346367476,1734915035065,-500.0,0.00019178,2]
[346367477,1734915035075,-357.04,0.00019178,2]
[346367478,1734915035085,-500.0,0.00019178,2]
[346367479,1734915035094,-586.24,0.00019178,2]
[346367480,1734915035104,-613.98,0.00019178,2]
[346367481,1734915035113,-500.0,0.00019178,2]
[346367482,1734915035123,-500.0,0.00019178,2]
[346367483,1734915035133,-500.0,0.00019178,2]
[346367484,1734915035143,-731.63,0.00019178,2]
[346367485,1734915035152,-500.0,0.00019178,2]
[346367486,1734915035161,-500.0,0.00019178,2]
[346367487,1734915035170,-500.0,0.00019178,2]
[346367488,1734915035180,-324.22,0.00019178,2]
[346367489,1734915035189,-752.06,0.00019178,2]
[346367490,1734915035199,-500.0,0.00019178,2]
[346367491,1734915035208,-500.0,0.00019178,2]
[346367492,1734915035218,-500.0,0.00019178,2]
[346367493,1734915035227,-500.0,0.00019178,2]
[346367494,1734915035236,-500.0,0.00019178,2]
[346367495,1734915035245,-500.0,0.00019178,2]
[346367496,1734915035255,-500.0,0.00019178,2]
[346367497,1734915035264,-500.0,0.00019178,2]
[346367498,1734915035274,-500.0,0.00019178,2]
[346367499,1734915035283,-3502.08,0.00019178,2]
[346367500,1734915035293,-851.49,0.00019178,2]
[346367501,1734915035304,-2772.7,0.00019178,2]
[346367502,1734915035313,-500.0,0.00019178,2]
[346367503,1734915035323,-676.77,0.00019178,2]
[346367504,1734915035333,-500.0,0.00019178,2]
[346367505,1734915035342,-500.0,0.00019178,2]
[346367506,1734915035352,-500.0,0.00019178,2]
[346367507,1734915035362,-594.15,0.00019178,2]
[346367508,1734915035371,-767.63,0.00019178,2]
[346367509,1734915035380,-1237.54,0.00019178,2]
[346367510,1734915035390,-869.98,0.00019178,2]
[346367511,1734915035400,-1546.49,0.00019178,2]
[346367512,1734915035604,-500.0,0.00019178,2]
[346367513,1734915035615,-1170.35,0.00019178,2]
[346367514,1734915035626,-556.01,0.00019178,2]
[346367515,1734915035636,-1119.19,0.00019178,2]
[346367516,1734915035648,-849.06,0.00019178,2]
[346367517,1734915035658,-2132.95,0.00019178,2]
[346367518,1734915035669,-500.0,0.00019178,2]
[346367519,1734915035679,-1193.18,0.00019178,2]
[346367520,1734915035690,-1367.36,0.00019178,2]
[346367521,1734915035700,-500.0,0.00019178,2]
[346367522,1734915035709,-500.0,0.00019178,2]
[346367523,1734915035719,-617.13,0.00019178,2]
[346367524,1734915035729,-4025.95,0.00019178,2]
[346367525,1734915035738,-809.11,0.00019178,2]
[346367526,1734915035748,-500.0,0.00019178,2]
[346367527,1734915035757,-1202.11,0.00019178,2]
[346367528,1734915035767,-500.0,0.00019178,2]
[346367529,1734915035777,-500.0,0.00019178,2]
[346367530,1734915035787,-500.0,0.00019178,2]
[346367531,1734915035798,-656.32,0.00019178,2]
[346367532,1734915035808,-1176.16,0.00019178,2]
[346367533,1734915035818,-500.0,0.00019178,2]
[346367534,1734915035827,-2232.69,0.00019178,2]
[346367535,1734915035837,-542.0,0.00019178,2]
[346367536,1734915035846,-500.0,0.00019178,2]
[346367537,1734915035855,-1023.09,0.00019178,2]
[346367538,1734915035864,-4838.51,0.00019178,2]
[346367539,1734915035874,-1215.06,0.00019178,2]
[346367540,1734915035884,-500.0,0.00019178,2]
[346367541,1734915035893,-2702.35,0.00019178,2]
[346367542,1734915035902,-550.89,0.00019178,2]
[346367543,1734915035911,-1816.5,0.00019178,2]
[346367544,1734915035920,-500.0,0.00019178,2]
[346367545,1734915035931,-359.4880686,0.00019178,2]
[346367546,1734915035942,-500.0,0.00019178,2]
[346367547,1734915035951,-863.4,0.00019178,2]
[346367548,1734915035960,-11845.2,0.00019178,2]
[346367549,1734915035970,-500.0,0.00019178,2]
[346367550,1734915035981,-994.58,0.00019178,2]
[346367551,1734915035990,-1515.68,0.00019178,2]
[346367552,1734915035999,-500.0,0.00019178,2]
[346367553,1734915036009,-500.0,0.00019178,2]
[346367554,1734915036018,-500.0,0.00019178,2]
[346367555,1734915036027,-868.12,0.00019178,2]
[346367556,1734915036037,-500.0,0.00019178,2]
[346367557,1734915036048,-1164.5,0.00019178,2]
[346367558,1734915036057,-500.0,0.00019178,2]
[346367559,1734915036067,-1708.2,0.00019178,2]
[346367560,1734915036077,-500.0,0.00019178,2]
[346367561,1734915036086,-1165.16,0.00019178,2]
[346367562,1734915036096,-500.0,0.00019178,2]
[346367563,1734915036106,-1230.29,0.00019178,2]
[346367564,1734915036115,-1040.64,0.00019178,2]
[346367565,1734915036125,-1218.04341222,0.00019178,2]
[346367581,1734915038404,-2104.89658778,0.00019178,2]
[346367582,1734915038414,-920.45,0.00019178,2]
[346367583,1734915038424,-2871.19,0.00019178,2]
[346367584,1734915038434,-757.67,0.00019178,2]
[346367585,1734915038444,-500.0,0.00019178,2]
[346367586,1734915038453,-1376.62,0.00019178,2]
[346367587,1734915038463,-500.0,0.00019178,2]
[346367588,1734915038472,-500.0,0.00019178,2]
[346367589,1734915038482,-500.0,0.00019178,2]
[346367590,1734915038492,-982.11,0.00019178,2]
[346367591,1734915038502,-500.0,0.00019178,2]
[346367592,1734915038512,-781.85,0.00019178,2]
[346367593,1734915038521,-857.43,0.00019178,2]
[346367594,1734915038531,-500.0,0.00019178,2]
[346367595,1734915038541,-557.11,0.00019178,2]
[346367596,1734915038552,-1238.96,0.00019178,2]
[346367597,1734915038562,-739.86,0.00019178,2]
[346367598,1734915038572,-500.0,0.00019178,2]
[346367599,1734915038582,-831.81,0.00019178,2]
[346367600,1734915038591,-500.0,0.00019178,2]
[346367601,1734915038601,-500.0,0.00019178,2]
[346367602,1734915038611,-500.0,0.00019178,2]
[346367603,1734915038620,-1348.22,0.00019178,2]
[346367604,1734915038630,-500.0,0.00019178,2]
[346367605,1734915038639,-1377.38,0.00019178,2]
[346367606,1734915038649,-500.0,0.00019178,2]
[346367607,1734915038658,-500.0,0.00019178,2]
[346367608,1734915038667,-2969.95,0.00019178,2]
[346367609,1734915038676,-500.0,0.00019178,2]
[346367610,1734915038686,-500.0,0.00019178,2]
[346367611,1734915038695,-561.05,0.00019178,2]
[346367612,1734915038704,-1027.41,0.00019178,2]
[346367613,1734915038713,-4889.04,0.00019178,2]
[346367614,1734915038722,-500.0,0.00019178,2]
[346367615,1734915038732,-2551.46,0.00019178,2]
[346367616,1734915038741,-1789.03,0.00019178,2]
[346367617,1734915038751,-500.0,0.00019178,2]
[346367618,1734915038760,-791.61,0.00019178,2]
[346367619,1734915038769,-2077.81,0.00019178,2]
[346367620,1734915038778,-502.26,0.00019178,2]
[346367621,1734915038787,-500.0,0.00019178,2]
[346367623,1734915038799,-500.0,0.00019178,2]
[346367625,1734915038808,-1123.95,0.00019178,2]
[346367627,1734915038819,-1846.95,0.00019178,2]
[346367629,1734915038828,-2966.2,0.00019178,2]
[346367631,1734915038838,-500.0,0.00019178,2]
[346367632,1734915038847,-1838.94,0.00019178,2]
[346367634,1734915038856,-500.0,0.00019178,2]
[346367636,1734915038865,-11439.05,0.00019178,2]
[346367638,1734915038875,-500.0,0.00019178,2]
[346367640,1734915038884,-897.79,0.00019178,2]
[346367642,1734915038894,-1092.72,0.00019178,2]
[346367644,1734915038903,-500.0,0.00019178,2]
[346367646,1734915038912,-500.0,0.00019178,2]
[346367648,1734915038921,-402.84,0.00019178,2]
[346367650,1734915038930,-500.0,0.00019178,2]
[346367652,1734915038939,-2080.52,0.00019178,2]
[346367654,1734915038953,-500.0,0.00019178,2]
[346367656,1734915038962,-500.0,0.00019178,2]
[346367659,1734915038971,-2982.82,0.00019178,2]
[346367661,1734915038980,-500.0,0.00019178,2]
[346367663,1734915038990,-500.0,0.00019178,2]
[346367665,1734915038999,-500.0,0.00019178,2]
[346367667,1734915039008,-500.0,0.00019178,2]
[346367668,1734915039018,-605.62,0.00019178,2]
[346367670,1734915039027,-821.87,0.00019178,2]
[346367672,1734915039037,-1203.86,0.00019178,2]
[346367675,1734915039048,-531.08,0.00019178,2]
[346367676,1734915039057,-2992.2,0.00019178,2]
[346367677,1734915039067,-728.2,0.00019178,2]
[346367678,1734915039076,-1475.89,0.00019178,2]
[346367679,1734915039085,-511.57,0.00019178,2]
[346367680,1734915039095,-1804.01,0.00019178,2]
[346367681,1734915039104,-1405.74,0.00019178,2]
[346367682,1734915039113,-500.0,0.00019178,2]
[346367683,1734915039123,-1506.17,0.00019178,2]
[346367684,1734915039131,-500.0,0.00019178,2]
[346367685,1734915039140,-500.0,0.00019178,2]
[346367686,1734915039150,-2823.12,0.00019178,2]
[346367687,1734915039159,-1016.88,0.00019178,2]
[346367688,1734915039168,-500.0,0.00019178,2]
[346367689,1734915039177,-500.0,0.00019178,2]
[346367690,1734915039186,-908.62,0.00019178,2]
[346367691,1734915039196,-5889.5979864,0.00019178,2]
[346367692,1734915039216,-607.6720136,0.00019178,2]
[346367693,1734915039225,-954.74,0.00019178,2]
[346367694,1734915039238,-500.0,0.00019178,2]
[346367695,1734915039254,-688.99,0.00019178,2]
[346367696,1734915039264,-828.06,0.00019178,2]
[346367697,1734915039273,-500.0,0.00019178,2]
[346367698,1734915039282,-500.0,0.00019178,2]
[346367699,1734915039291,-500.0,0.00019178,2]
[346367700,1734915039302,-2033.62,0.00019178,2]
[346367701,1734915039311,-500.0,0.00019178,2]
[346367702,1734915039320,-500.0,0.00019178,2]
[346367703,1734915039330,-500.0,0.00019178,2]
[346367704,1734915039339,-500.0,0.00019178,2]
[346367705,1734915039349,-500.0,0.00019178,2]
[346367706,1734915039358,-882.48,0.00019178,2]
[346367707,1734915039367,-500.0,0.00019178,2]
[346367708,1734915039376,-4884.21,0.00019178,2]
[346367709,1734915039386,-514.66,0.00019178,2]
[346367710,1734915039395,-500.0,0.00019178,2]
[346367711,1734915039405,-528.95,0.00019178,2]
[346367712,1734915039415,-500.0,0.00019178,2]
[346367713,1734915039424,-500.0,0.00019178,2]
[346367714,1734915039433,-500.0,0.00019178,2]
[346367715,1734915039443,-500.0,0.00019178,2]
[346367716,1734915039452,-500.0,0.00019178,2]
[346367717,1734915039461,-500.0,0.00019178,2]
[346367718,1734915039471,-151.65470864,0.00019178,2]
[346367719,1734915039480,-500.0,0.00019178,2]
[346367720,1734915039489,-660.31,0.00019178,2]
[346367721,1734915039499,-1000.0,0.00019178,2]
[346367722,1734915039508,-500.0,0.00019178,2]
[346367723,1734915039518,-500.0,0.00019178,2]
[346367724,1734915039527,-1102.53,0.00019178,2]
[346367725,1734915039537,-500.0,0.00019178,2]
[346367726,1734915039548,-500.0,0.00019178,2]
[346367727,1734915039557,-500.0,0.00019178,2]
[346367728,1734915039567,-500.0,0.00019178,2]
[346367729,1734915039578,-912.72,0.00019178,2]
[346367730,1734915039588,-668.03,0.00019178,2]
[346367731,1734915039598,-500.0,0.00019178,2]
[346367732,1734915039609,-1221.92,0.00019178,2]
[346367733,1734915039618,-500.0,0.00019178,2]
[346367734,1734915039628,-500.0,0.00019178,2]
[346367735,1734915039637,-1332.86,0.00019178,2]
[346367736,1734915039647,-1031.93,0.00019178,2]
[346367737,1734915039656,-500.0,0.00019178,2]
[346367738,1734915039666,-500.0,0.00019178,2]
[346367739,1734915039675,-500.0,0.00019178,2]
[346367740,1734915039685,-500.0,0.00019178,2]
[346367741,1734915039695,-500.0,0.00019178,2]
[346367742,1734915039705,-167.96831494,0.00019242,2]
[346367743,1734915039714,-209.0,0.0001931,2]
[346367744,1734915039723,-167.96831494,0.00019407,2]
[346367745,1734915039733,-200.0,0.00019448,2]
[346367746,1734915039742,-500.0,0.00019451,2]
[346367747,1734915039752,-500.0,0.00019451,2]
[346367748,1734915039761,-356.12003091,0.00019451,2]
[346367749,1734915039771,-500.0,0.00019451,2]
[346367750,1734915039780,-479.19768412,0.00019451,2]
[346367751,1734915039791,-479.19768412,0.00019452,2]
[346367752,1734915039801,-401.42440205,0.00019452,2]
[346367753,1734915039810,-500.0,0.00019452,2]
[346367754,1734915039819,-502.00590263,0.00019452,2]
[346367755,1734915039828,-502.1374098,0.00019452,2]
[346367756,1734915039837,-1615.565857,0.00019452,2]
[346367757,1734915039846,-1293.978143,0.00019452,2]
[346367758,1734915039855,-500.0,0.00019452,2]
[346367759,1734915039865,-500.0,0.00019452,2]
[346367760,1734915039874,-500.0,0.00019452,2]
[346367761,1734915039883,-500.0,0.00019452,2]
[346367762,1734915039892,-500.0,0.00019452,2]
[346367763,1734915039902,-500.0,0.00019452,2]
[346367764,1734915039911,-500.0,0.00019452,2]
[346367765,1734915039920,-500.0,0.00019452,2]
[346367766,1734915039929,-500.0,0.00019452,2]
[346367767,1734915039939,-500.0,0.00019452,2]
[346367768,1734915039952,-500.0,0.00019452,2]
[346367769,1734915039962,-500.0,0.00019452,2]
[346367770,1734915039972,-500.0,0.00019452,2]
[346367771,1734915039982,-1221.55,0.00019452,2]
[346367772,1734915039991,-500.0,0.00019452,2]
[346367773,1734915040002,-500.0,0.00019452,2]
[346367774,1734915040011,-500.0,0.00019452,2]
[346367775,1734915040021,-500.0,0.00019452,2]
[346367776,1734915040030,-500.0,0.00019452,2]
[346367777,1734915040040,-500.0,0.00019452,2]
[346367778,1734915040051,-500.0,0.00019452,2]
[346367779,1734915040060,-500.0,0.00019452,2]
[346367780,1734915040069,-500.0,0.00019452,2]
[346367781,1734915040079,-500.0,0.00019452,2]
[346367782,1734915040282,-855.84,0.00019452,2]
[346367783,1734915040292,-500.0,0.00019452,2]
[346367784,1734915040302,-500.0,0.00019452,2]
[346367785,1734915040311,-500.0,0.00019452,2]
[346367786,1734915040320,-500.0,0.00019452,2]
[346367787,1734915040330,-618.98,0.00019452,2]
[346367788,1734915040340,-500.0,0.00019452,2]
[346367789,1734915040350,-526.52,0.00019452,2]
[346367790,1734915040359,-500.0,0.00019452,2]
[346367791,1734915040368,-500.0,0.00019452,2]
[346367792,1734915040377,-500.0,0.00019452,2]
[346367793,1734915040387,-500.0,0.00019452,2]
[346367794,1734915040396,-500.0,0.00019452,2]
[346367795,1734915040405,-500.0,0.00019452,2]
[346367796,1734915040415,-500.0,0.00019452,2]
[346367797,1734915040424,-500.0,0.00019452,2]
[346367798,1734915040434,-500.0,0.00019452,2]
[346367799,1734915040443,-500.0,0.00019452,2]
[346367800,1734915040452,-500.0,0.00019452,2]
[346367801,1734915040463,-500.0,0.00019452,2]
[346367802,1734915040473,-500.0,0.00019452,2]
[346367803,1734915040482,-500.0,0.00019452,2]
[346367804,1734915040492,-500.0,0.00019452,2]
[346367805,1734915040501,-500.0,0.00019452,2]
[346367806,1734915040511,-500.0,0.00019452,2]
[346367807,1734915040519,-500.0,0.00019452,2]
[346367808,1734915040529,-500.0,0.00019452,2]
[346367809,1734915040538,-500.0,0.00019452,2]
[346367810,1734915040549,-500.0,0.00019452,2]
[346367811,1734915040559,-500.0,0.00019452,2]
[346367812,1734915040569,-500.0,0.00019452,2]
[346367813,1734915040578,-500.0,0.00019452,2]
[346367814,1734915040588,-310.85,0.00019452,2]
[346367815,1734915040598,-500.0,0.00019452,2]
[346367816,1734915040607,-500.0,0.00019452,2]
[346367817,1734915040617,-500.0,0.00019452,2]
[346367818,1734915040627,-500.0,0.00019452,2]
[346367819,1734915040636,-500.0,0.00019452,2]
[346367820,1734915040645,-500.0,0.00019452,2]
[346367821,1734915040655,-684.09,0.00019452,2]
[346367822,1734915040665,-605.03,0.00019452,2]
[346367823,1734915040674,-500.0,0.00019452,2]
[346367824,1734915040684,-500.0,0.00019452,2]
[346367825,1734915040693,-500.0,0.00019452,2]
[346367826,1734915040702,-500.0,0.00019452,2]
[346367827,1734915040712,-500.0,0.00019452,2]
[346367828,1734915040722,-500.0,0.00019452,2]
[346367829,1734915040731,-560.35,0.00019452,2]
[346367830,1734915040740,-500.0,0.00019452,2]
[346367831,1734915040750,-500.0,0.00019452,2]
[346367832,1734915040759,-787.89,0.00019452,2]
[346367833,1734915040769,-500.0,0.00019452,2]
[346367834,1734915040778,-500.0,0.00019452,2]
[346367835,1734915040788,-521.25,0.00019452,2]
[346367836,1734915040801,-500.0,0.00019452,2]
[346367837,1734915040810,-500.0,0.00019452,2]
[346367838,1734915040820,-461.69,0.00019452,2]
[346367839,1734915040830,-500.0,0.00019452,2]
[346367840,1734915040839,-500.0,0.00019452,2]
[346367841,1734915040848,-500.0,0.00019452,2]
[346367842,1734915040858,-590.47607582,0.00019452,2]
[346367843,1734915040867,-500.0,0.00019452,2]
[346367844,1734915040877,-500.0,0.00019452,2]
[346367845,1734915040886,-500.0,0.00019452,2]
[346367846,1734915040896,-500.0,0.00019452,2]
[346367847,1734915040905,-891.99,0.00019452,2]
[346367848,1734915040915,-554.5904673,0.00019452,2]
[346367849,1734915040924,-428.05263498,0.00019452,2]
[346367850,1734915040934,-500.0,0.00019452,2]
[346367851,1734915040945,-500.0,0.00019452,2]
[346367852,1734915040957,-500.0,0.00019452,2]
[346367853,1734915040966,-500.0,0.00019452,2]
[346367854,1734915040976,-738.15,0.00019452,2]
[346367855,1734915040987,-500.0,0.00019452,2]
[346367856,1734915040996,-500.0,0.00019452,2]
[346367857,1734915041006,-500.0,0.00019452,2]
[346367858,1734915041016,-790.55,0.00019452,2]
[346367859,1734915041027,-500.0,0.00019452,2]
[346367860,1734915041037,-500.0,0.00019452,2]
[346367861,1734915041046,-500.0,0.00019452,2]
[346367862,1734915041056,-689.47,0.00019452,2]
[346367863,1734915041065,-500.0,0.00019452,2]
[346367864,1734915041075,-500.0,0.00019452,2]
[346367865,1734915041084,-500.0,0.00019452,2]
[346367866,1734915041093,-500.0,0.00019452,2]
[346367867,1734915041103,-548.92,0.00019452,2]
[346367868,1734915041113,-787.62,0.00019452,2]
[346367869,1734915041123,-500.0,0.00019452,2]
[346367870,1734915041132,-500.0,0.00019452,2]
[346367871,1734915041141,-847.99,0.00019452,2]
[346367872,1734915041151,-500.0,0.00019452,2]
[346367873,1734915041160,-500.0,0.00019452,2]
[346367874,1734915041169,-500.0,0.00019452,2]
[346367875,1734915041178,-500.0,0.00019452,2]
[346367876,1734915041188,-500.0,0.00019452,2]
[346367877,1734915041198,-500.0,0.00019452,2]
[346367878,1734915041207,-500.0,0.00019452,2]
[346367879,1734915041217,-500.0,0.00019452,2]
[346367880,1734915041226,-511.84,0.00019452,2]
[346367881,1734915041235,-500.0,0.00019452,2]
[346367882,1734915041244,-500.0,0.00019452,2]
[346367883,1734915041255,-690.54,0.00019452,2]
[346367884,1734915041264,-796.63,0.00019452,2]
[346367885,1734915041327,-500.0,0.00019452,2]
[346367886,1734915041337,-500.0,0.00019452,2]
[346367887,1734915041346,-500.0,0.00019452,2]
[346367888,1734915041356,-191.56066199,0.00019452,2]
[346367889,1734915041365,-500.0,0.00019452,2]
[346367890,1734915041375,-500.0,0.00019452,2]
[346367891,1734915041384,-500.0,0.00019452,2]
[346367892,1734915041393,-500.0,0.00019452,2]
[346367893,1734915041402,-502.04,0.00019452,2]
[346367894,1734915041411,-500.0,0.00019452,2]
[346367895,1734915041420,-500.0,0.00019452,2]
[346367896,1734915041429,-500.0,0.00019452,2]
[346367897,1734915041439,-625.3,0.00019452,2]
[346367898,1734915041448,-652.55,0.00019452,2]
[346367899,1734915041457,-567.15,0.00019452,2]
[346367900,1734915041467,-500.0,0.00019452,2]
[346367901,1734915041476,-500.0,0.00019452,2]
[346367902,1734915041485,-500.0,0.00019452,2]
[346367903,1734915041495,-706.97,0.00019452,2]
[346367904,1734915041505,-500.0,0.00019452,2]
[346367905,1734915041514,-500.0,0.00019452,2]
[346367906,1734915041523,-500.0,0.00019452,2]
[346367907,1734915041533,-500.0,0.00019452,2]
[346367908,1734915041542,-500.0,0.00019452,2]
[346367909,1734915041553,-500.0,0.00019452,2]
[346367910,1734915041562,-500.0,0.00019452,2]
[346367911,1734915041571,-500.0,0.00019452,2]
[346367912,1734915041581,-562.07,0.00019452,2]
[346367913,1734915041590,-500.0,0.00019452,2]
[346367914,1734915041600,-500.0,0.00019452,2]
[346367915,1734915041609,-500.0,0.00019452,2]
[346367916,1734915041620,-500.0,0.00019452,2]
[346367917,1734915041630,-500.0,0.00019452,2]
[346367918,1734915041640,-586.24,0.00019452,2]
[346367919,1734915041649,-613.98,0.00019452,2]
[346367920,1734915041658,-500.0,0.00019452,2]
[346367921,1734915041667,-500.0,0.00019452,2]
[346367922,1734915041677,-500.0,0.00019452,2]
[346367923,1734915041686,-731.63,0.00019452,2]
[346367924,1734915041695,-500.0,0.00019452,2]
[346367925,1734915041704,-500.0,0.00019452,2]
[346367926,1734915041713,-500.0,0.00019452,2]
[346367927,1734915041723,-500.0,0.00019452,2]
[346367928,1734915041734,-500.0,0.00019452,2]
[346367929,1734915041743,-500.0,0.00019452,2]
[346367930,1734915041752,-500.0,0.00019452,2]
[346367931,1734915041762,-295.68,0.00019452,2]
[346367932,1734915041773,-500.0,0.00019452,2]
[346367933,1734915041783,-500.0,0.00019452,2]
[346367934,1734915041792,-3502.08,0.00019452,2]
[346367935,1734915041803,-851.49,0.00019452,2]
[346367936,1734915041812,-2772.7,0.00019452,2]
[346367937,1734915041822,-500.0,0.00019452,2]
[346367938,1734915041831,-500.0,0.00019452,2]
[346367939,1734915041840,-500.0,0.00019452,2]
[346367940,1734915041850,-500.0,0.00019452,2]
[346367941,1734915041859,-594.15,0.00019452,2]
[346367942,1734915041868,-767.63,0.00019452,2]
[346367943,1734915041877,-1237.54,0.00019452,2]
[346367944,1734915041888,-869.98,0.00019452,2]
[346367945,1734915041900,-1546.49,0.00019452,2]
[346367946,1734915041910,-1170.35,0.00019452,2]
[346367947,1734915041919,-556.01,0.00019452,2]
[346367948,1734915041928,-1119.19,0.00019452,2]
[346367949,1734915041939,-849.06,0.00019452,2]
[346367950,1734915041952,-2132.95,0.00019452,2]
[346367951,1734915041962,-500.0,0.00019452,2]
[346367952,1734915041972,-1193.18,0.00019452,2]
[346367953,1734915041983,-1367.36,0.00019452,2]
[346367954,1734915041993,-500.0,0.00019452,2]
[346367955,1734915042002,-500.0,0.00019452,2]
[346367956,1734915042011,-617.13,0.00019452,2]
[346367957,1734915042020,-4025.95,0.00019452,2]
[346367958,1734915042029,-809.11,0.00019452,2]
[346367959,1734915042039,-500.0,0.00019452,2]
[346367960,1734915042049,-1202.11,0.00019452,2]
[346367961,1734915042058,-363.81,0.00019452,2]
[346367962,1734915042067,-656.32,0.00019452,2]
[346367963,1734915042076,-1176.16,0.00019452,2]
[346367964,1734915042085,-500.0,0.00019452,2]
[346367965,1734915042094,-2232.69,0.00019452,2]
[346367966,1734915042103,-542.0,0.00019452,2]
[346367967,1734915042112,-500.0,0.00019452,2]
[346367968,1734915042121,-1023.09,0.00019452,2]
[346367969,1734915042130,-4838.51,0.00019452,2]
[346367970,1734915042138,-1215.06,0.00019452,2]
[346367971,1734915042147,-500.0,0.00019452,2]
[346367972,1734915042156,-2702.35,0.00019452,2]
[346367973,1734915042165,-550.89,0.00019452,2]
[346367974,1734915042174,-1816.5,0.00019452,2]
[346367975,1734915042183,-500.0,0.00019452,2]